bitfinex/quotes_SOLUSD_20251218
["timestamp","ask_amount","ask_price","bid_price","bid_amount"]
[1766079987494,0.68,123.26,123.22,7.06933638]
[1766079988105,0.68,123.26,123.21,7.06933638]
[1766079988106,0.68,123.25,123.21,7.06933638]
[1766079988320,0.68,123.24,123.2,7.06933638]
[1766079989615,0.68,123.24,123.18,0.33]
[1766079989809,0.68,123.24,123.2,8.11679202]
[1766079990018,8.84,123.24,123.2,8.11679202]
[1766079990208,0.68,123.25,123.19,8.44741152]
[1766079990518,0.68,123.24,123.19,0.33]
[1766079991092,9.52,123.25,123.19,0.33]
[1766079991294,20.98696778,123.25,123.19,0.33]
[1766079991510,20.98696778,123.25,123.19,8.44724363]
[1766079991704,9.52,123.25,123.19,8.44724363]
[1766079991901,9.52,123.25,123.21,11.46696778]
[1766079992104,0.68,123.25,123.21,11.46696778]
[1766079992295,9.52,123.25,123.21,11.46696778]
[1766079993404,0.68,123.24,123.2,11.46696778]
[1766079994214,0.68,123.24,123.18,0.33]
[1766079994444,0.68,123.24,123.2,11.46696778]
[1766079994720,0.68,123.23,123.19,11.46696778]
[1766079995931,9.52,123.23,123.19,11.46696778]
[1766079996235,8.84,123.23,123.2,11.46696778]
[1766079996713,8.84,123.23,123.21,11.46696778]
[1766079997098,8.84,123.23,123.2,11.46696778]
[1766079997508,8.84,123.23,123.2,19.58350973]
[1766079997708,12.14696778,123.27,123.22,11.46696778]
[1766079997919,12.14696778,123.27,123.23,11.46696778]
[1766079997920,9.52,123.27,123.23,11.46696778]
[1766079998105,9.52,123.27,123.2,8.11654195]
[1766079998106,22.58464074,123.29,123.24,11.46696778]
[1766079998294,20.98696778,123.28,123.23,11.46696778]
[1766079998494,0.68,123.27,123.23,11.46696778]
[1766079999402,12.14696778,123.27,123.22,11.46696778]
[1766079999602,12.14696778,123.27,123.22,19.58250831]
[1766080000428,12.14696778,123.28,123.23,11.46696778]
[1766080000601,0.68,123.25,123.2,11.46696778]
[1766080000801,0.68,123.23,123.2,11.46696778]
[1766080003129,20.96696778,123.23,123.18,11.46696778]
[1766080003335,21.90464074,123.28,123.17,11.46696778]
[1766080003336,20.96696778,123.22,123.17,11.46696778]
[1766080004004,9.5,123.22,123.18,11.46696778]
[1766080004637,12.12696778,123.24,123.19,11.46696778]
[1766080004933,42.18464484,123.28,123.23,11.46696778]
[1766080004934,12.12696778,123.28,123.23,11.46696778]
[1766080005103,5.03267687,123.27,123.23,11.46696778]
[1766080005426,5.03267687,123.26,123.24,11.46092903]
[1766080005600,0.66,123.28,123.24,8.11417536]
[1766080005927,0.66,123.29,123.25,11.46092903]
[1766080007024,0.66,123.29,123.26,11.46092903]
[1766080007223,0.76,123.32,123.27,11.46092903]
[1766080007529,0.76,123.32,123.25,19.57449502]
[1766080007530,0.66,123.29,123.25,19.57449502]
[1766080007905,12.12092903,123.3,123.25,19.57449502]
[1766080008302,12.12092903,123.3,123.25,8.11356599]
[1766080008502,0.66,123.29,123.25,11.46092903]
[1766080008719,8.84,123.3,123.27,11.46092903]
[1766080008909,12.12092903,123.31,123.26,11.46092903]
[1766080009119,5.04393596,123.3,123.26,8.1126923]
[1766080009309,9.5,123.31,123.27,11.46092903]
[1766080009508,5.0451452,123.3,123.27,11.46092903]
[1766080009822,0.66,123.3,123.26,11.46092903]
[1766080011201,0.66,123.3,123.27,11.46092903]
[1766080012011,8.84,123.31,123.27,11.46092903]
[1766080012219,5.04803062,123.3,123.27,11.46092903]
[1766080012531,8.84,123.31,123.26,8.11287947]
[1766080012839,12.12092903,123.28,123.23,19.5755068]
[1766080013016,0.66,123.28,123.24,11.46092903]
[1766080013339,11.46092903,123.3,123.25,11.46092903]
[1766080013631,12.12092903,123.28,123.21,0.33]
[1766080013805,5.05294813,123.27,123.22,20.61835713]
[1766080014014,0.66,123.28,123.24,11.46092903]
[1766080014817,0.66,123.31,123.25,11.79092903]
[1766080015007,25.35433337,123.3,123.25,11.79092903]
[1766080015205,25.35433337,123.3,123.26,11.46092903]
[1766080015206,5.05340434,123.29,123.26,11.46092903]
[1766080015425,12.12092903,123.29,123.24,11.46092903]
[1766080015629,0.66,123.27,123.23,11.46092903]
[1766080016005,0.66,123.27,123.22,11.46092903]
[1766080016224,12.12092903,123.27,123.22,19.57646078]
[1766080016514,0.66,123.27,123.23,11.46092903]
[1766080016939,0.66,123.26,123.21,0.33]
[1766080017128,11.46092903,123.26,123.2,8.44656594]
[1766080017317,11.46092903,123.26,123.18,30.73197701]
[1766080017318,11.46092903,123.23,123.17,0.33]
[1766080017636,0.66,123.2,123.14,8.12038846]
[1766080017838,0.66,123.19,123.15,11.46092903]
[1766080018034,0.66,123.22,123.18,11.46092903]
[1766080018330,0.66,123.22,123.16,0.33]
[1766080018331,5.71573513,123.21,123.16,8.4492344]
[1766080018522,0.66,123.21,123.17,11.46092903]
[1766080019928,20.30092903,123.23,123.18,11.46092903]
[1766080020131,5.05967761,123.22,123.19,11.46092903]
[1766080020332,0.66,123.26,123.21,11.46092903]
[1766080020542,5.05888751,123.25,123.22,11.46092903]
[1766080020708,5.05888751,123.24,123.22,11.46092903]
[1766080020910,0.66,123.26,123.22,11.46092903]
[1766080021120,0.71,123.23,123.17,18.55640673]
[1766080021336,0.71,123.23,123.19,11.46092903]
[1766080021635,0.71,123.21,123.16,18.55673836]
[1766080021805,5.76967705,123.2,123.16,11.46092903]
[1766080022003,0.71,123.2,123.16,11.46092903]
[1766080022334,0.71,123.2,123.14,18.55810618]
[1766080022335,0.71,123.16,123.08,8.1245399]
[1766080022551,12.17092903,123.13,123.07,8.65520863]
[1766080022838,12.17092903,123.12,123.07,0.2]
[1766080023039,12.17092903,123.12,123.07,11.66092903]
[1766080023335,0.71,123.11,123.07,11.66092903]
[1766080024341,21.2962025,123.18,123.08,11.46092903]
[1766080024525,0.71,123.16,123.09,0.33]
[1766080024732,0.71,123.15,123.11,11.46092903]
[1766080025031,21.01092903,123.15,123.11,11.46092903]
[1766080025237,21.89860199,123.17,123.12,11.46092903]
[1766080025411,11.46092903,123.2,123.15,11.46092903]
[1766080025617,0.71,123.19,123.15,11.46092903]
[1766080026115,11.46092903,123.19,123.14,11.46092903]
[1766080026313,0.71,123.16,123.12,11.46092903]
[1766080026514,0.71,123.16,123.1,8.12307005]
[1766080026725,0.71,123.19,123.08,19.27767296]
[1766080027023,0.71,123.19,123.14,11.46092903]
[1766080027024,0.71,123.18,123.14,11.46092903]
[1766080027627,18.55472142,123.2,123.08,19.27767296]
[1766080027628,0.71,123.16,123.1,8.12343284]
[1766080027812,0.71,123.15,123.11,11.46092903]
[1766080028137,11.46092903,123.18,123.13,11.46092903]
[1766080028337,11.46092903,123.18,123.08,19.27767296]
[1766080028338,0.71,123.16,123.09,8.45400177]
[1766080028638,0.71,123.15,123.11,11.46092903]
[1766080029432,0.71,123.13,123.09,11.46092903]
[1766080029814,0.71,123.13,123.08,8.12468422]
[1766080030034,21.89860199,123.16,123.11,11.46092903]
[1766080030232,9.55,123.15,123.11,11.46092903]
[1766080030826,9.55,123.15,123.09,8.12388653]
[1766080031026,20.30092903,123.15,123.1,11.46092903]
[1766080031218,0.71,123.12,123.08,21.89860199]
[1766080031421,0.71,123.12,123.08,11.46092903]
[1766080031839,0.71,123.14,123.1,11.46092903]
[1766080032142,20.30092903,123.15,123.09,11.46092903]
[1766080032143,0.71,123.12,123.09,11.46092903]
[1766080032314,0.71,123.12,123.07,0.2]
[1766080032522,11.46092903,123.12,123.07,11.66092903]
[1766080032716,0.68,123.11,123.07,11.66092903]
[1766080032911,0.68,123.1,123.07,0.2]
[1766080033117,0.68,123.08,123.04,11.46092903]
[1766080033329,0.68,123.08,123.03,8.32770158]
[1766080033330,0.68,123.07,123.03,11.66092903]
[1766080033535,0.68,123.07,123.04,11.46092903]
[1766080034017,11.46092903,123.09,123.05,11.46092903]
[1766080034018,0.68,123.09,123.05,11.46092903]
[1766080034429,0.68,123.08,123.04,11.46092903]
[1766080034622,11.46092903,123.08,123.03,10.63767296]
[1766080034833,11.46092903,123.08,123.03,0.2]
[1766080034834,0.68,123.06,123.03,0.2]
[1766080035020,9.52,123.06,123.03,0.2]
[1766080035214,9.52,123.06,123.03,11.66092903]
[1766080035615,8.84,123.06,123.04,11.46092903]
[1766080035832,9.52,123.08,123.04,11.46092903]
[1766080036218,0.68,123.06,123.03,0.2]
[1766080037417,0.68,123.07,123.03,0.2]
[1766080037655,9.52,123.07,123.03,11.66092903]
[1766080038154,20.30092903,123.07,123.03,11.66092903]
[1766080038319,0.68,123.06,123.03,0.2]
[1766080038518,11.46092903,123.06,123.03,0.2]
[1766080038841,12.14092903,123.06,123.03,0.2]
[1766080039419,0.68,123.02,122.99,0.2]
[1766080039725,20.98092903,123.01,122.99,0.2]
[1766080039942,12.14092903,123.0,122.97,0.2]
[1766080040117,8.84,123.01,122.97,0.2]
[1766080040322,11.46092903,123.02,122.97,12.37092903]
[1766080040545,8.84,123.01,122.97,12.37092903]
[1766080040922,8.84,123.02,123.0,12.17092903]
[1766080041121,8.84,123.02,123.0,11.46092903]
[1766080041449,0.68,123.0,122.97,0.2]
[1766080041649,20.30092903,123.01,122.97,0.2]
[1766080042037,11.46092903,123.01,122.97,0.2]
[1766080042325,11.46092903,122.98,122.97,0.2]
[1766080042524,8.80994492,123.01,122.97,0.2]
[1766080042727,20.98092903,123.01,122.97,0.2]
[1766080043120,11.46092903,123.0,122.97,0.2]
[1766080043950,9.52,123.05,122.99,0.42]
[1766080044243,12.14092903,123.04,122.98,11.88092903]
[1766080044458,0.68,123.04,122.99,0.42]
[1766080044743,12.14092903,123.04,122.99,0.42]
[1766080044919,12.14092903,123.04,122.97,10.63767296]
[1766080044920,0.68,123.01,122.97,10.63767296]
[1766080045126,11.46092903,123.02,122.97,10.63767296]
[1766080045323,11.46092903,123.02,122.97,11.05767296]
[1766080045529,12.14092903,123.03,122.97,11.05767296]
[1766080045727,0.68,123.03,122.97,10.63767296]
[1766080045928,11.46092903,123.07,123.01,0.42]
[1766080046138,12.14092903,123.05,123.0,8.86]
[1766080046449,12.14092903,123.05,122.98,21.89860199]
[1766080046450,0.68,123.04,122.98,19.71767296]
[1766080046650,12.14092903,123.04,122.98,19.71767296]
[1766080047153,11.46092903,123.02,122.98,10.85767296]
[1766080047357,11.46092903,123.03,122.98,10.85767296]
[1766080047657,11.46092903,123.03,122.98,0.42]
[1766080047846,0.68,123.04,122.99,0.42]
[1766080047847,11.46092903,123.04,122.99,0.42]
[1766080048258,11.46092903,123.03,122.99,0.42]
[1766080048441,12.14092903,123.03,122.97,19.91767296]
[1766080048963,12.14092903,123.01,122.97,0.2]
[1766080049341,8.12811011,123.03,122.97,0.2]
[1766080049342,11.46092903,123.02,122.97,0.2]
[1766080049935,0.68,123.03,122.97,0.2]
[1766080050151,11.46092903,123.02,122.97,0.2]
[1766080050351,0.68,123.04,122.98,0.42]
[1766080050557,11.46092903,123.01,122.98,10.43767296]
[1766080050851,11.46092903,123.02,122.98,10.43767296]
[1766080051058,8.80994492,123.04,122.98,10.43767296]
[1766080051559,7.0827763,123.03,122.98,10.43767296]
[1766080051732,7.0827763,123.03,122.98,10.85767296]
[1766080051932,7.0827763,123.02,122.98,10.85767296]
[1766080052259,7.0827763,123.03,122.98,10.85767296]
[1766080052438,0.68,123.05,122.98,10.85767296]
[1766080052638,7.0827763,123.03,122.98,10.85767296]
[1766080052840,8.1270588,123.05,122.99,0.42]
[1766080052841,7.0827763,123.05,122.99,0.42]
[1766080053041,7.0827763,123.04,122.99,0.42]
[1766080053235,7.0827763,123.03,122.97,0.62]
[1766080053443,7.0827763,123.02,122.97,9.48]
[1766080053643,7.0827763,123.02,122.97,9.06]
[1766080053949,7.0827763,123.03,122.98,0.42]
[1766080054152,7.0827763,123.02,122.98,0.42]
[1766080054887,7.0827763,123.03,122.97,9.06]
[1766080055045,7.7627763,123.05,122.99,0.42]
[1766080055551,0.68,123.05,122.99,0.42]
[1766080055757,7.7627763,123.05,122.99,7.5027763]
[1766080055954,8.80994492,123.07,123.0,0.42]
[1766080056180,7.7627763,123.07,123.02,0.42]
[1766080056341,0.68,123.06,123.01,19.29767296]
[1766080056663,0.68,123.06,123.02,8.86]
[1766080056870,7.7627763,123.06,123.02,8.86]
[1766080057042,0.68,123.06,123.02,8.86]
[1766080057238,20.30963553,123.1,123.02,8.86]
[1766080057239,7.0827763,123.1,123.03,7.0827763]
[1766080057454,7.0827763,123.1,123.04,0.42]
[1766080057839,7.0827763,123.13,123.07,0.42]
[1766080058044,7.7627763,123.13,123.06,7.0827763]
[1766080058261,0.68,123.12,123.07,8.86]
[1766080058463,7.0827763,123.11,123.06,10.85767296]
[1766080058669,7.7627763,123.1,123.03,17.52044926]
[1766080058872,7.7627763,123.1,123.0,0.42]
[1766080058873,7.7627763,123.07,123.0,0.42]
[1766080059073,0.68,123.05,123.0,0.42]
[1766080059378,7.7627763,123.06,123.01,8.86]
[1766080059755,7.0827763,123.08,123.02,7.5027763]
[1766080059959,7.7627763,123.09,123.04,10.43767296]
[1766080060846,7.7627763,123.08,123.04,10.43767296]
[1766080061047,0.68,123.08,123.04,10.43767296]
[1766080061264,0.68,123.1,123.04,10.43767296]
[1766080061469,0.68,123.09,123.04,10.43767296]
[1766080061771,7.7627763,123.09,123.04,10.43767296]
[1766080062381,7.0827763,123.08,123.04,10.43767296]
[1766080062878,0.68,123.09,123.04,10.43767296]
[1766080063241,7.7627763,123.09,123.05,8.86]
[1766080063942,8.12285759,123.11,123.05,9.28]
[1766080063943,7.0827763,123.1,123.05,9.28]
[1766080064152,7.7927763,123.08,123.02,10.85767296]
[1766080064349,7.7927763,123.08,123.04,8.86]
[1766080064650,7.7927763,123.09,123.04,8.86]
[1766080065068,0.71,123.08,123.04,8.86]
[1766080065376,7.0827763,123.06,123.01,10.43767296]
[1766080065673,7.7927763,123.06,123.02,8.86]
[1766080065870,0.71,123.05,123.01,10.43767296]
[1766080066190,0.71,123.05,123.01,19.29767296]
[1766080066374,7.7927763,123.07,123.02,8.86]
[1766080066567,0.71,123.07,123.02,8.86]
[1766080066878,7.7927763,123.07,123.02,8.86]
[1766080067083,0.71,123.07,123.02,8.86]
[1766080067272,0.71,123.07,123.02,17.40865989]
[1766080067474,0.71,123.07,123.02,9.28]
[1766080068170,10.43767296,123.09,123.02,24.0714081]
[1766080068472,7.7927763,123.1,123.04,7.5027763]
[1766080068856,0.71,123.08,123.02,17.52044926]
[1766080069063,7.7927763,123.08,123.03,8.86]
[1766080070453,7.7927763,123.07,123.02,10.85767296]
[1766080070678,8.80994492,123.1,123.03,8.86]
[1766080070679,7.7927763,123.06,123.03,8.86]
[1766080070860,7.0827763,123.05,123.0,10.85767296]
[1766080071065,7.7927763,123.07,123.01,9.28]
[1766080071271,7.0827763,123.08,123.02,0.42]
[1766080071468,8.12431582,123.09,123.03,7.5027763]
[1766080071469,7.7927763,123.09,123.03,7.5027763]
[1766080071666,0.71,123.09,123.03,7.5027763]
[1766080071867,16.93362541,123.1,123.03,19.29767296]
[1766080071868,7.0827763,123.07,123.03,19.29767296]
[1766080072183,7.7927763,123.07,123.03,8.86]
[1766080072791,7.0827763,123.06,123.02,10.43767296]
[1766080072987,7.7927763,123.05,123.01,8.86]
[1766080073650,18.23044926,123.07,123.01,8.54906092]
[1766080073872,18.23044926,123.07,123.02,8.86]
[1766080074267,19.27215009,123.09,123.03,0.42]
[1766080074483,12.56012489,123.08,123.03,0.42]
[1766080074676,7.7927763,123.08,123.03,0.42]
[1766080074866,7.7927763,123.1,123.04,7.5027763]
[1766080075488,0.71,123.1,123.05,7.07364887]
[1766080075685,0.71,123.1,123.06,8.86]
[1766080075987,0.71,123.1,123.06,15.93364887]
[1766080076188,0.71,123.1,123.06,8.86]
[1766080076690,10.43767296,123.12,123.06,15.93364887]
[1766080076883,0.1,123.17,123.11,7.07364887]
[1766080077082,0.1,123.17,123.15,7.07364887]
[1766080077380,0.1,123.17,123.16,8.86]
[1766080077758,0.1,123.21,123.16,15.93364887]
[1766080077962,0.1,123.21,123.18,7.07364887]
[1766080078361,0.1,123.21,123.16,8.86]
[1766080078561,0.1,123.21,123.19,7.07364887]
[1766080078875,0.1,123.21,123.2,8.86]
[1766080079078,0.1,123.21,123.18,8.86]
[1766080079260,0.81,123.21,123.18,8.86]
[1766080080489,0.81,123.21,123.15,10.43767296]
[1766080080792,0.1,123.21,123.17,7.07364887]
[1766080080990,0.1,123.21,123.18,7.07364887]
[1766080081182,0.1,123.21,123.17,8.11870454]
[1766080081363,0.1,123.21,123.19,7.07364887]
[1766080082369,0.1,123.21,123.18,8.84]
[1766080082370,0.81,123.21,123.18,8.84]
[1766080082802,0.71,123.2,123.13,8.80994492]
[1766080083101,0.71,123.2,123.16,8.84]
[1766080083387,0.71,123.2,123.16,15.91364887]
[1766080083988,0.71,123.2,123.17,7.07364887]
[1766080084596,7.07364887,123.2,123.13,10.43767296]
[1766080084779,0.71,123.19,123.14,15.91364887]
[1766080084975,0.71,123.19,123.15,7.07364887]
[1766080085193,0.71,123.2,123.14,16.96060953]
[1766080085364,0.71,123.2,123.16,7.07364887]
[1766080085993,0.1,123.21,123.18,7.07364887]
[1766080086370,7.78364887,123.25,123.19,7.07364887]
[1766080086573,0.71,123.25,123.21,7.07364887]
[1766080086995,0.71,123.27,123.23,7.07364887]
[1766080087175,7.07364887,123.27,123.18,28.41358969]
[1766080087377,7.07364887,123.27,123.22,7.07364887]
[1766080087378,0.71,123.26,123.22,7.07364887]
[1766080087971,0.71,123.25,123.21,8.84]
[1766080088178,0.71,123.23,123.19,15.91364887]
[1766080088395,7.07364887,123.23,123.16,18.5567635]
[1766080088693,0.71,123.22,123.18,15.91364887]
[1766080089082,0.71,123.22,123.18,8.84]
[1766080089377,0.71,123.21,123.17,7.07364887]
[1766080089577,0.71,123.18,123.08,24.37681783]
[1766080089780,0.71,123.18,123.13,7.07364887]
[1766080089781,0.71,123.17,123.13,7.07364887]
[1766080090117,0.71,123.17,123.13,15.91364887]
[1766080090698,0.71,123.17,123.13,8.84]
[1766080091017,10.43767296,123.19,123.11,8.84]
[1766080091175,0.71,123.18,123.14,7.07364887]
[1766080091519,0.71,123.17,123.13,7.07364887]
[1766080091869,0.71,123.18,123.14,7.07364887]
[1766080092369,0.71,123.18,123.12,8.12188572]
[1766080092568,0.69,123.17,123.12,7.07364887]
[1766080092769,0.69,123.16,123.12,7.07364887]
[1766080092992,0.69,123.16,123.1,7.07364887]
[1766080092993,0.69,123.15,123.1,7.07364887]
[1766080093196,0.69,123.15,123.09,8.12383829]
[1766080093197,0.69,123.15,123.12,7.07364887]
[1766080093397,19.24761788,123.19,123.14,7.07364887]
[1766080093398,10.43767296,123.19,123.14,7.07364887]
[1766080093679,0.69,123.18,123.15,7.07364887]
[1766080093878,0.69,123.2,123.16,7.07364887]
[1766080094085,0.69,123.2,123.17,7.07364887]
[1766080094679,0.69,123.22,123.17,8.11869758]
[1766080094889,7.07364887,123.25,123.21,7.07364887]
[1766080094890,0.69,123.25,123.21,7.07364887]
[1766080095393,0.69,123.25,123.2,15.91364887]
[1766080095597,0.69,123.24,123.2,15.91364887]
[1766080095805,0.69,123.24,123.17,8.11869758]
[1766080095806,0.69,123.24,123.19,7.07364887]
[1766080096192,0.69,123.22,123.18,15.91364887]
[1766080097403,0.69,123.22,123.19,7.07364887]
[1766080097583,0.69,123.22,123.18,8.84]
[1766080097984,0.69,123.22,123.18,15.91364887]
[1766080098405,0.69,123.22,123.18,7.07364887]
[1766080098605,0.69,123.21,123.17,15.91364887]
[1766080098908,0.69,123.21,123.17,8.84]
[1766080099075,0.69,123.21,123.17,15.91364887]
[1766080099480,7.76364887,123.21,123.15,10.43767296]
[1766080099679,0.69,123.2,123.15,17.51132183]
[1766080100011,0.69,123.2,123.16,7.07364887]
[1766080100186,0.69,123.22,123.17,7.07364887]
[1766080100386,0.69,123.22,123.15,10.43767296]
[1766080100387,11.12767296,123.22,123.18,7.07364887]
[1766080100701,0.69,123.21,123.16,8.1189738]
[1766080100892,0.69,123.21,123.18,7.07364887]
[1766080101094,0.69,123.21,123.15,10.43767296]
[1766080101298,0.69,123.2,123.16,7.07364887]
[1766080101485,0.69,123.18,123.14,7.07364887]
[1766080102209,0.69,123.18,123.13,8.84]
[1766080102210,0.69,123.18,123.15,7.07364887]
[1766080102395,0.69,123.18,123.14,7.07364887]
[1766080102593,10.43767296,123.21,123.13,16.96149744]
[1766080102594,0.69,123.17,123.13,7.07364887]
[1766080102906,0.69,123.17,123.14,7.07364887]
[1766080103282,0.69,123.17,123.13,8.84]
[1766080103484,7.07364887,123.2,123.15,7.07364887]
[1766080103792,18.55421461,123.21,123.16,7.07364887]
[1766080103793,0.69,123.19,123.16,7.07364887]
[1766080103987,0.69,123.19,123.13,37.26492451]
[1766080104177,0.69,123.19,123.15,7.07364887]
[1766080105187,0.69,123.19,123.14,8.12077205]
[1766080105188,0.69,123.17,123.13,7.07364887]
[1766080105389,0.69,123.17,123.12,17.51132183]
[1766080105611,0.69,123.15,123.11,7.07364887]
[1766080105814,0.69,123.15,123.12,7.07364887]
[1766080106391,0.69,123.13,123.07,8.1251361]
[1766080106615,0.69,123.13,123.09,7.07364887]
[1766080106793,0.69,123.13,123.03,7.07364887]
[1766080106794,7.07364887,123.12,123.07,7.07364887]
[1766080107117,0.69,123.11,123.07,7.07364887]
[1766080107298,8.80994492,123.11,123.05,7.07364887]
[1766080107492,0.69,123.09,123.05,7.07364887]
[1766080108419,0.69,123.09,123.03,27.40525855]
[1766080108818,0.69,123.09,123.05,7.07364887]
[1766080108998,0.69,123.09,123.04,7.07364887]
[1766080109413,7.07364887,123.08,123.01,8.3291662]
[1766080109719,0.69,123.07,123.04,7.07364887]
[1766080111420,7.07364887,123.06,123.01,0.2]
[1766080111629,0.69,123.03,123.01,0.2]
[1766080111809,7.07364887,123.03,122.95,8.80994492]
[1766080112011,7.07364887,123.02,122.97,7.27364887]
[1766080112218,7.07364887,123.0,122.97,0.2]
[1766080112722,7.07364887,123.01,122.97,0.2]
[1766080112923,15.20310556,123.01,122.97,0.2]
[1766080113123,7.07364887,123.01,122.97,0.2]
[1766080113300,7.07364887,123.0,122.97,0.2]
[1766080113632,19.64219696,123.01,122.97,0.2]
[1766080113801,0.69,122.98,122.93,0.2]
[1766080114337,11.51272047,123.0,122.95,11.51272047]
[1766080114502,0.69,123.0,122.97,11.51272047]
[1766080115025,0.69,123.03,122.99,11.51272047]
[1766080115220,0.69,123.03,122.96,9.32994492]
[1766080115221,0.69,123.03,123.0,11.51272047]
[1766080115419,0.69,123.03,122.99,11.51272047]
[1766080115828,0.69,123.02,122.98,11.51272047]
[1766080116136,11.12767296,123.04,122.97,8.65197395]
[1766080116323,0.69,123.03,122.99,11.51272047]
[1766080116627,0.69,123.03,122.97,8.65197395]
[1766080116924,0.69,123.03,123.0,11.51272047]
[1766080117115,0.69,123.03,123.01,11.51272047]
[1766080117319,0.69,123.05,123.02,11.51272047]
[1766080117522,0.69,123.05,123.0,8.13000483]
[1766080117726,10.43767296,123.07,123.03,11.51272047]
[1766080118034,11.51272047,123.08,123.05,11.51272047]
[1766080118035,0.69,123.08,123.05,11.51272047]
[1766080118202,16.93281454,123.11,123.0,46.125153]
[1766080118203,0.69,123.1,123.06,11.51272047]
[1766080118406,0.69,123.09,123.03,0.52]
[1766080118620,0.69,123.09,123.06,11.51272047]
[1766080118621,11.12767296,123.09,123.06,11.51272047]
[1766080118811,11.12767296,123.09,123.03,0.52]
[1766080118812,11.12767296,123.09,123.05,11.51272047]
[1766080119220,0.69,123.08,123.05,11.51272047]
[1766080119804,11.51272047,123.08,123.03,11.51272047]
[1766080120005,0.69,123.07,123.03,11.51272047]
[1766080120406,65.35767574,123.14,123.06,22.47039343]
[1766080120407,24.75116172,123.14,123.06,22.47039343]
[1766080120606,11.51272047,123.1,123.05,11.51272047]
[1766080120810,11.51272047,123.08,123.03,11.51272047]
[1766080121035,0.69,123.04,122.99,8.86]
[1766080121236,0.69,123.03,122.99,11.51272047]
[1766080121435,0.69,123.03,123.0,11.51272047]
[1766080122734,12.17272047,123.05,122.99,11.51272047]
[1766080123229,12.17272047,123.05,123.0,11.51272047]
[1766080123426,0.66,123.04,123.0,11.51272047]
[1766080123732,11.51272047,123.04,122.97,10.43767296]
[1766080123925,0.66,123.02,122.98,11.51272047]
[1766080124227,0.66,123.02,122.97,19.29767296]
[1766080124228,0.66,123.02,122.99,11.51272047]
[1766080124619,12.17272047,123.04,122.99,11.51272047]
[1766080124809,0.66,123.04,123.0,11.51272047]
[1766080125009,11.51272047,123.04,122.99,11.51272047]
[1766080125232,12.17272047,123.04,122.99,11.51272047]
[1766080125432,0.66,123.04,123.0,11.51272047]
[1766080125633,0.66,123.04,122.98,0.52]
[1766080125803,0.66,123.03,122.98,0.52]
[1766080126002,0.66,123.03,122.98,11.51272047]
[1766080127127,0.66,123.03,122.96,11.51272047]
[1766080127128,0.66,123.01,122.96,11.51272047]
[1766080127834,0.66,123.01,122.95,20.37272047]
[1766080127835,0.66,123.0,122.95,20.37272047]
[1766080128011,0.66,123.0,122.96,11.51272047]
[1766080128533,0.66,123.0,122.97,11.51272047]
[1766080128911,0.66,123.0,122.96,11.51272047]
[1766080129132,0.66,123.0,122.95,16.99317095]
[1766080129431,0.66,123.0,122.97,11.51272047]
[1766080129637,11.51272047,123.0,122.95,20.37272047]
[1766080129844,11.51272047,122.99,122.93,11.71272047]
[1766080130135,0.66,122.95,122.93,0.2]
[1766080130715,0.66,122.95,122.89,27.6349974]
[1766080130716,0.66,122.93,122.89,11.71272047]
[1766080131309,0.66,122.93,122.89,8.33725793]
[1766080131635,11.09767296,122.95,122.91,11.51272047]
[1766080131930,0.66,122.97,122.93,11.51272047]
[1766080132837,0.66,123.0,122.95,11.51272047]
[1766080133138,0.66,122.99,122.95,11.51272047]
[1766080133312,0.66,122.99,122.93,19.2523604]
[1766080133509,0.66,122.99,122.95,11.51272047]
[1766080133709,0.66,122.98,122.94,11.51272047]
[1766080134434,8.80994492,122.99,122.93,10.43767296]
[1766080134638,11.51272047,122.95,122.9,11.51272047]
[1766080134815,8.13140348,122.98,122.91,11.51272047]